Cogmind - Beta 15 @@@ ROGUE MODE // 2025.10.08 @ 10:44:59 Player: DietSnapple Result: Destroyed by GM-J5T with Makeshift Shrapnel Gun Performance ------------- Evolutions (0) 0 Regions Visited (3) 600 Robots Destroyed (16) 80 Value Destroyed (273) 273 Prototype IDs (23) 460 Alien Tech Used (0) 0 Bonus (385) 385 TOTAL SCORE: 1798 Bonus ------- Follower Combat Kills 85 Aligned with FarCom 300 Cogmind --------- Core Integrity 0/250 Matter 300/300 Energy 99/100 System Corruption 1% Temperature Cool (0) Movement Core (50) Location -10/Exiles Parts ------- > --- POWER (1) -------- (None) > --- PROPULSION (2) --- (None) > --- UTILITY (2) ------ (None) > --- WEAPON (2) ------- (None) > --- INVENTORY (5) ---- Medium Storage Unit Hacking Suite Grenade Launcher Signal Generator Peak State ------------ > --- POWER ------------ Ion Engine > --- PROPULSION ------- Light Treads Light Treads > --- UTILITY ---------- Improved Heat Sink Medium Storage Unit > --- WEAPON ----------- Medium Laser Medium Laser > --- INVENTORY -------- Light Ion Engine Wheel Compact Wheel Small Storage Unit Superbattery Hacking Suite Grenade Launcher Mining Laser Signal Generator [Rating: 11] Favorites ----------- Power Light Ion Engine Engine Light Ion Engine Propulsion Light Treads Treads Light Treads Utility Improved Heat Sink Device Improved Heat Sink Storage Medium Storage Unit Weapon Medium Laser Energy Gun Medium Laser Ballistic Gun Assault Rifle Build | -11 -10 -10 -10 ------- Run | Yrd Mat Min Exi Slots Evolved . | . . . . Power . | . . . . Propulsion . | . . . . Utility . | . . . . Weapon . | . . . . Parts Attached 13 | 6 6 . 1 Power 3 | 1 2 . . Engine 3 | 1 2 . . Core . | . . . . Reactor . | . . . . Propulsion 2 | 2 . . . Treads 2 | 2 . . . Leg . | . . . . Wheel . | . . . . Hover . | . . . . Flight . | . . . . Utility 5 | 1 3 . 1 Device 2 | . 2 . . Storage 3 | 1 1 . 1 Processor . | . . . . Hackware . | . . . . Protection . | . . . . Artifact . | . . . . Weapon 3 | 2 1 . . Energy Gun 2 | 1 1 . . Energy Cannon . | . . . . Ballistic Gun 1 | 1 . . . Ballistic Cannon . | . . . . Launcher . | . . . . Special Weapon . | . . . . Impact Weapon . | . . . . Slashing Weapon . | . . . . Piercing Weapon . | . . . . Special Melee Weapon . | . . . . Unidentified Prototypes . | . . . . Parts Lost 5 | . 2 . 3 Power 2 | . 1 . 1 Propulsion 2 | . . . 2 Utility . | . . . . Weapon 1 | . 1 . . Highest Loss Streak 3 | . 2 . 3 To Critical Strikes . | . . . . Average Backups 5 | 2 4 7 7 Power . | . . 1 1 Propulsion 1 | 1 2 2 2 Utility 1 | . . 2 2 Weapon 1 | . 1 2 2 Tool/Special . | . . . . Unused Backups 5 | . . . 5 Power . | . . . . Propulsion 2 | . . . 2 Utility 2 | . . . 2 Weapon 1 | . . . 1 Tool/Special . | . . . . Average Slot Usage (%) 98 | . 97 100 99 Engine 13 | . 13 14 14 Treads 27 | . 27 28 27 Device 13 | . 13 14 14 Storage 14 | . 14 14 14 Energy Gun 26 | . 25 28 28 Ballistic Gun 1 | . 2 . . Peak Build Rating 11 | 6 9 10 11 Average Rating 8 | 4 8 9 10 On Entrance 6 | . 6 9 10 Naked Turns 3 | . . . 3 Heaviest Build 30 | 12 20 20 30 Greatest Support 40 | 40 40 40 40 Greatest Overweight (x) 1 | 1 . . 1 Average Overweight (x) . | . . . . Largest Inventory Capacity 15 | 8 10 10 15 Average Capacity 9 | 7 9 10 11 Most Carried 10 | 4 7 8 10 Average Carried 5 | 2 4 7 8 Final Capacity 10 | 8 10 10 5 Final Carried 8 | 4 7 8 4 Class Distribution -------------------- 100% | Mutant Dominant Class ---------------- Mutant | -10/Materials Mutant | -10/Mines Mutant | -10/Exiles Resources | -11 -10 -10 -10 ----------- Run | Yrd Mat Min Exi Matter Collected 437 | 235 194 8 . Remotely . | . . . . Salvage Created 445 | . 413 32 . Parts 27 | . 26 1 . Haulers Intercepted 1 | . 1 . . Recyclers Shooed . | . . . . Parts Field Recycled . | . . . . Retrieved Matter . | . . . . Parts Self-Destructed . | . . . . Prevented . | . . . . Kills | -11 -10 -10 -10 ------- Run | Yrd Mat Min Exi Combat Hostiles Destroyed 9 | . 8 1 . Guns 9 | . 8 1 . Classes Destroyed 6 | . 6 . . Worker 1 | . 1 . . Builder 3 | . 3 . . Hauler 1 | . 1 . . Operator 2 | . 2 . . Swarmer 4 | . 4 . . Grunt 5 | . 4 1 . Best Kill Streak 4 | . 4 1 . Combat Bots Only 2 | . 2 1 . Max Kills in Single Turn 2 | . 2 1 . Gunslinging . | . . . . Exploded . | . . . . Melee . | . . . . Uniques/NPCs Destroyed . | . . . . Combat | -11 -10 -10 -10 -------- Run | Yrd Mat Min Exi Hostile Shots Fired 107 | . 70 4 33 Missed 38 | . 31 1 6 Hits 69 | . 39 3 27 Melee 2 | . . . 2 Projectile 67 | . 39 3 25 Critical Strikes 2 | . . . 2 Damage Taken 885 | . 454 41 390 Core 252 | . 63 . 189 Absorbed by Shields . | . . . . Core Remaining (%) 100 | 100 . . . Volleys Fired 68 | . 61 5 2 Largest 2 | . 2 2 2 Hottest 100 | . 100 100 100 Shots Fired 134 | . 119 10 5 Gun 134 | . 119 10 5 Cannon . | . . . . Launcher . | . . . . Special . | . . . . Kinetic 23 | . 23 . . Thermal 111 | . 96 10 5 Explosive . | . . . . Electromagnetic . | . . . . Robot Hit Streak 7 | . 7 6 2 Robot Miss Streak 5 | . 5 1 1 Penetration Max . | . . . . Secondary Targets 1 | . 1 . . Max Gunslinging Chain 1 | . 1 . . Shots Hit Robots 74 | . 62 9 3 Core Hits 28 | . 23 4 1 Critical Kills . | . . . . Critical Parts Destroyed . | . . . . Critical Strikes 7 | . 7 . . Burn 7 | . 7 . . Melee Attacks . | . . . . Impact . | . . . . Slashing . | . . . . Piercing . | . . . . Sneak Attacks . | . . . . Combat Hostiles . | . . . . Follow-up Attacks . | . . . . Damage Inflicted 1014 | . 863 114 37 Guns 1014 | . 863 114 37 Cannons . | . . . . Explosions . | . . . . Melee . | . . . . Ramming . | . . . . Kinetic 188 | . 188 . . Thermal 826 | . 675 114 37 Explosive . | . . . . Electromagnetic . | . . . . Impact . | . . . . Slashing . | . . . . Piercing . | . . . . Highest Corruption 1 | . 1 1 1 Average Corruption 1 | . 1 1 1 Corruption Purged . | . . . . Corruption Blocked . | . . . . Effects 8 | . 1 3 4 Message Errors 3 | . . 2 1 Matter Fused 1 | . . 1 . Heat Flow Errors 1 | . 1 . . Energy Discharges 1 | . . . 1 Misfires 1 | . . . 1 Alerts 1 | . . . 1 Overload Shots . | . . . . Overflow Damage . | . . . . Projectiles . | . . . . Explosions . | . . . . Melee . | . . . . Knockbacks . | . . . . Impact . | . . . . Kinetic . | . . . . Secondary . | . . . . Self-Inflicted Damage . | . . . . Shots . | . . . . Rammed . | . . . . Targets Rammed . | . . . . Kicked . | . . . . Crushed . | . . . . Highest Temperature 127 | . 127 . . Average Temperature 56 | . 56 . . Received Heat Transfer 225 | . 204 21 . Siege Activations . | . . . . Martial Activations . | . . . . Shielding Activations . | . . . . Robots Disrupted . | . . . . Combat Hostiles . | . . . . Robots Corrupted . | . . . . Combat Hostiles . | . . . . Parts Fried . | . . . . Impact Corruptions . | . . . . Robots Melted . | . . . . Combat Hostiles . | . . . . Parts Melted 3 | . 3 . . Heat Transferred 2960 | . 2516 333 111 Parts Sabotaged . | . . . . Parts Stolen . | . . . . Parts Stripped . | . . . . Power Chain Reactions . | . . . . Alert | -11 -10 -10 -10 ------- Run | Yrd Mat Min Exi Maximum Alert Level . | . . . . Low Security (%) 100 | 100 100 100 . Level 1 . | . . . . Level 2 . | . . . . Level 3 . | . . . . Level 4 . | . . . . Level 5 . | . . . . High Security . | . . . . Max Security . | . . . . Peak Influence 85 | . 80 85 . Initial . | . . . . Average 12 | . 10 49 . Influence Increases 348 | . 253 95 . Destroy 0b10 Robot/C 240 | . 160 80 . Destroy 0b10 Robot/NC 35 | . 35 . . Destroy Leader 42 | . 32 10 . Allied During Kill 5 | . . 5 . Successful Hack 10 | . 10 . . Destroy Structure 1 | . 1 . . Lose Combat Pursuer 15 | . 15 . . Influence Decreases 348 | . 253 50 45 Entered New Map 45 | . . . 45 Time Decay 283 | . 233 50 . Lost Part 20 | . 20 . . Squads Dispatched 4 | . 3 1 . Investigation 1 | . 1 . . Extermination . | . . . . Reinforcement 2 | . 2 . . Assault 1 | . . 1 . Garrison . | . . . . Intercept . | . . . . Searches Triggered . | . . . . Construction Impeded . | . . . . Haulers Reinforced . | . . . . Active Scanning Responses . | . . . . Cargo Convoy Interrupts . | . . . . Stealth | -11 -10 -10 -10 --------- Run | Yrd Mat Min Exi Distress Signals 2 | . 2 . . Communications Jammed . | . . . . Distress Signals . | . . . . Times Spotted 44 | . 28 5 11 Peak Tracking Total 16 | . 4 4 16 Tactical Retreats 1 | . 1 . . Traps | -11 -10 -10 -10 ------- Run | Yrd Mat Min Exi Traps Triggered 4 | . 4 . . Indirectly . | . . . . Trap Hack Attempts . | . . . . Triggered . | . . . . Disarmed . | . . . . Reprogrammed . | . . . . Reused . | . . . . Traps Extracted . | . . . . Installed . | . . . . Triggered . | . . . . Machines | -11 -10 -10 -10 ---------- Run | Yrd Mat Min Exi Machines Disabled 2 | . 1 . 1 Max in Single Turn 1 | . 1 . 1 Machines Repaired . | . . . . Machines Dismantled . | . . . . Machines Sabotaged . | . . . . Overloaded Fab Kills . | . . . . Hacking | -11 -10 -10 -10 --------- Run | Yrd Mat Min Exi Machines Accessed 5 | . 4 . 1 Terminals 4 | . 4 . . Fabricators . | . . . . Repair Stations . | . . . . Recycling Units . | . . . . Scanalyzers . | . . . . Garrison Access . | . . . . Total Hacks 12 | . 11 . 1 Successful 5 | . 4 . 1 Failed 7 | . 7 . . Catastrophic 1 | . 1 . . Database Lockouts . | . . . . Manual 12 | . 11 . 1 Terminals 11 | . 11 . . Fabricators . | . . . . Repair Stations . | . . . . Recycling Units . | . . . . Scanalyzers . | . . . . Garrison Access . | . . . . Terminal Hacks 1 | . . . 1 Proto ID Catalog 1 | . . . 1 Fabricator Hacks . | . . . . Repair Station Hacks . | . . . . Recycling Unit Hacks . | . . . . Scanalyzer . | . . . . Garrison Access Hacks . | . . . . Unauthorized Hacks 4 | . 4 . . Terminals 4 | . 4 . . Assimilate 1 | . 1 . . Botnet 2 | . 2 . . Operators 1 | . 1 . . Fabricators . | . . . . Repair Stations . | . . . . Recycling Units . | . . . . Scanalyzers . | . . . . Garrison Access . | . . . . Data Cores Recovered . | . . . . Used . | . . . . Hacking Detections 4 | . 4 . . Full Trace Events . | . . . . Feedback Events . | . . . . Feedback Blocked . | . . . . Robot Schematics Acquired . | . . . . Robots Built . | . . . . Authchips . | . . . . Time . | . . . . Total Robot Build Rating . | . . . . Part Schematics Acquired . | . . . . Parts Built . | . . . . Authchips . | . . . . Time . | . . . . Total Part Build Rating . | . . . . Parts Repaired . | . . . . Time . | . . . . Parts Recycled . | . . . . Recycled Matter . | . . . . Retrieved Matter . | . . . . Retrieved Components . | . . . . Parts Scanalyzed . | . . . . Part Schematics Acquired . | . . . . Parts Damaged . | . . . . Bothacking | -11 -10 -10 -10 ------------ Run | Yrd Mat Min Exi Used RIF Installer . | . . . . Robots Hacked . | . . . . Non-combat . | . . . . Combat . | . . . . Robot Hacks Applied . | . . . . Relay Couplers Released . | . . . . Fabnet Peak Effective % . | . . . . Robots Rewired . | . . . . Allies Hacked . | . . . . Hacks Repelled . | . . . . Allies | -11 -10 -10 -10 -------- Run | Yrd Mat Min Exi Total Allies 1 | . . 1 . Largest Group 1 | . . 1 1 Highest-Rated Group 31 | . . 31 31 Highest-Rated Ally 31 | . . 31 31 Total Orders . | . . . . Ally Attacks 11 | . . 9 2 Total Damage 170 | . . 127 43 Kills 4 | . . 3 1 Allies Corrupted . | . . . . Allies Melted . | . . . . Intel | -11 -10 -10 -10 ------- Run | Yrd Mat Min Exi Active Infowar (turns) 167 | . 167 . . Structural 167 | . 167 . . Robot Analysis Total . | . . . . Derelict Logs Recovered . | . . . . Drone Launches . | . . . . Drone Recoveries . | . . . . Exploration | -11 -10 -10 -10 ------------- Run | Yrd Mat Min Exi Turns Passed 2248 | 151 1340 135 622 Spaces Moved 1273 | 104 714 75 380 Core 30 | 27 . . 3 Treads 1243 | 77 714 75 377 Legs . | . . . . Wheels . | . . . . Hover . | . . . . Flight . | . . . . Fastest Speed 50 | 50 160 160 50 Average Speed 158 | 133 160 160 160 Slowest Speed 240 | 160 160 160 240 Overloaded Moves . | . . . . Propulsion Burnouts . | . . . . Robots Hopped . | . . . . Potential Cave-ins . | . . . . Cave-ins Triggered . | . . . . Exploration Rate (%) 45 | 5 80 18 78 Regions Visited 3 Branch Regions 2 Pre-discovered Areas . | . . . . Known Exits Taken . | . . . . Unknown Exits Taken 3 | 1 1 1 . Scrap Searched . | . . . . Spaces Dug . | . . . . Terrain Destroyed . | . . . . Melee . | . . . . Projectile . | . . . . AOE . | . . . . Terrain Rammed . | . . . . Walls Destroyed . | . . . . Machines Disabled . | . . . . Actions | -11 -10 -10 -10 --------- Run | Yrd Mat Min Exi Total 1369 | 113 788 80 388 Wait . | . . . . Move 1270 | 103 713 74 380 Hop . | . . . . Pick Up 10 | 4 3 1 2 Fast Attach 12 | 6 6 . . Attach 2 | . 2 . . Detach . | . . . . Swap 4 | . 3 . 1 Drop 2 | . . . 2 Fire 68 | . 61 5 2 Melee . | . . . . Ram . | . . . . Kick . | . . . . Crush . | . . . . Escape Stasis . | . . . . Rewire 1 | . . . 1 Trap . | . . . . Miscellaneous . | . . . . Route ------- -11/Scrapyard -10/Materials (discovered 3 exits: [*Mat x2] / [*Min]) -10/Mines (discovered 2 exits: [*Mat] / *Exi) -10/Exiles History --------- Turn | Location | Event 2 | -11/Scrapyard | Met Revision 17 7 | -11/Scrapyard | Discovered new exit (range 16) 152 | -11/Scrapyard | Entered Materials 310 | -10/Materials | Discovered new exit (range 7) 317 | -10/Materials | Build established: Mutant 735 | -10/Materials | Discovered new exit (range 15) 1329 | -10/Materials | Discovered new exit (range 8) 1492 | -10/Materials | Entered Mines 1493 | -10/Mines | Met a Derelict testing a Signal Generator 1497 | -10/Mines | Found Signal Generator 1556 | -10/Mines | Discovered new exit (range 12) 1616 | -10/Mines | Deemed a non-threat by the Exiles lab entrance 1617 | -10/Mines | Discovered new exit (range 5) 1627 | -10/Mines | Entered Exiles 1627 | -10/Exiles | Accompanied by 1 ally 1666 | -10/Exiles | Met 8R-AWN 1698 | -10/Exiles | Met EX-HEX 1743 | -10/Exiles | Met EX-BIN 1771 | -10/Exiles | Aligned with FarCom system 1773 | -10/Exiles | Given EX-Vault access code 1821 | -10/Exiles | Opened EX-Vault 1851 | -10/Exiles | Found Superbattery 1888 | -10/Exiles | Warned to stay clear of 0b10 Research branches 1934 | -10/Exiles | Met EX-DEC 2106 | -10/Exiles | Visited The Gauntlet 2223 | -10/Exiles | Attacked by the Exiles 2245 | -10/Exiles | Core integrity fell below 50% 2246 | -10/Exiles | Released all parts (4) 2249 | -10/Exiles | Destroyed by GM-J5T with Makeshift Shrapnel Gun Last Messages --------------- 01930_ ZK WC#YG04O99Y/UYV#67%WB EX-DEC: Ah I see we have a visitor. One wrong move in here and I'll invert your atomic chain! 01936_ EX-DEC: "Oops, I hope HEX didn't hear that..." 02003_ A-02 Transporter is unpowered. 02223_ System corrupted: FCS attempts to trigger Med. Laser. 02223_ System corrupted: Med. Laser misfires. 02223_ EXILES: Hostile robot within lab perimeter. Defensive protocols time, folks! 02223_ 5L-KAT destroyed. 02223_ Lgt. Treads destroyed. 02226_ IQ-MMX(g) destroyed. 02243_ Ion Engine destroyed. 02243_ Machine disabled. 02244_ Lgt. Treads destroyed. 02246_ Released Med. Laser. 02246_ Released Imp. Heat Sink. 02246_ Released Lrg. Storage Unit. 02247_ Dropped Wheel. 02247_ Dropped Com. Wheel. 02248_ EX-BIN: "I just want to science!" 02248_ Acquired Signal Generator. Map ----- +----------------------------------------------------+ | ??????????#""" """##???????????#"""" | | ??????????#""" ""#????????????#"" | | ??????????#"" ########???###"""" | | ??????????#""" ## ####""" | | ??????????#"" """" | | ??????????##"" | | ???????????#"""" | | ???????????## | | ????????????#" " "" | | ????????????#"""" ""## ##""" " " " | | ????????????#"" ""#### #?####""" ?? | | ????????????#" """"##??# #??????????? | | ????????????#""" """#??## ####???????? | | ????????????## ""##??#! "!#???????? | | ?????????????#"" ca"""##???#" !#???????? | | ?????????????##""" c ##????#" "#???????? | | ??????????????##"""" a ##?????#! ""!"#???????? | | ???????????????### a #??????########???????? | | ?????????????????##### a##?????????????????????? | | ?????????????????????## a#??????????????????????? | | ??????????????????????# z#??????????????????????? | | ??????????????????????# z#??????????????????????? | | ??????????????????????# #??????????????????????? | | ??????????????????????# #??????????????????????? | | ???""""?????"""""?????# #??????????????????????? | | ??""""""????""""""????#aa@#??????????????????????? | | ?""""" "????" """"???#! !#??????????????????????? | | #""" """????"" """???#[!*#??????????????????????? | | #"" ""????"" ""???#[| #??????????????????????? | | ###"""########"""###### ########???????????????? | | """ """""""" """"""z """"""#???????????????? | | "" """"""" c "#"" "???????????? | | [ " "???????????? | | =% " "????????????? | | = " "????????????? | | %"" #"" "???????????? | | " " """"" " """" """""#???????????????? | | ###"""###""###"""########"""######???????????????? | | ?"" ""#""#"" ""?????? ""???????????????????? | | #""" ""#""#""" ""#????? """#??????????????????? | | #" """"""""#" " "#?????"""""#??????????????????? | | ?"""""""????"""""""#????? """"???????????????????? | | ?"""""""????"""""""#?????""""????????????????????? | | ??????????????####????????#??????????????????????? | | ?????????????????????????????????????????????????? | | ?????????????????????????????????????????????????? | | ?????????????????????????????????????????????????? | | ?????????????????????????????????????????????????? | | | | | +----------------------------------------------------+ Best States ------------- Heat Dissipation 39 Energy Generation 10 Energy Capacity 250 Matter Stores 300 Matter Capacity 300 Sight Range 16 Terrain Scan Density 10 Evasion (%) 50 Recoil Reduction 2 Item Schematics ----------------- None Robot Schematics ------------------ None Fabricated ------------ Nothing Repaired ---------- Nothing Alien Tech Used ----------------- None Achievements -------------- None Challenges ------------ None Game ------ Seed SignalHypertargetingDirector Manual? 0 Play Time 00:13:15 Cumulative 20.5 hours Start 2025.10.07 @ 22:49:00 End 2025.10.08 @ 10:44:59 Sessions 1 Manual Loads 0 Difficulty Rogue Special Mode None Game No. 60 Rogue 53 Adventurer 7 Explorer 0 Win Type - Total 0 Types 0/0/0/0/0/0/0/0/0/0 Lore% 5 Gallery% 20 Achievement% 19 Wizard Run 0 Options --------- Layout 0 ASCII 0 Keyboard 1 Movement Vi Keybinds 0 Fullscreen 1 Font 18/SmallcapsGlow Map View 112x50 Zoom Use 0% Tactical HUD 1 Map Filters NONE Filters NONE Steam 1 RUN: 04623ea2-5fed-4284-9d1c-518095bf219a